fUST/lending_fUST_20250921
["ID","MTS","AMOUNT","RATE_DAILY","PERIOD"]
[386555909,1758388911560,-168.0,0.00020614,2]
[386555910,1758388911589,-42.10883964,0.00020614,2]
[386555911,1758388911621,-2290.04585174,0.00020614,2]
[386555912,1758388911701,-3483.09414826,0.00020614,2]
[386555913,1758388982841,241.98,0.00019225,2]
[386555914,1758388983359,483.97,0.00020141,2]
[386555915,1758389028555,-260.18966095,0.00020586,2]
[386555916,1758389031378,-219.81033905,0.00020586,2]
[386555917,1758389031408,-480.0,0.00020586,2]
[386555918,1758389031437,-480.0,0.00020586,2]
[386555919,1758389031466,-480.0,0.00020586,2]
[386555920,1758389031496,-226.6240629,0.00020586,2]
[386555921,1758389031523,-433.65824738,0.00020586,2]
[386555922,1758389031553,-1221.93,0.00020587,2]
[386555923,1758389031581,-300.0,0.00020612,2]
[386555924,1758389031610,-730.41470134,0.00020613,2]
[386555925,1758389031811,-155.32495961,0.00020613,2]
[386555926,1758389031848,-699.81033905,0.00020613,2]
[386555927,1758389031878,-1149.0,0.00020613,2]
[386555928,1758389031908,-480.0,0.00020613,2]
[386555929,1758389031937,-534.81,0.00020613,2]
[386555930,1758389031966,-480.0,0.00020613,2]
[386555931,1758389031998,-1627.46,0.00020613,2]
[386555932,1758389032130,-57.8493219,0.00020613,2]
[386555933,1758389051401,-938.98379586,0.00020586,2]
[386555934,1758389051424,-8122.04240828,0.00020586,2]
[386555935,1758389051691,-422.1506781,0.00020613,2]
[386555936,1758389051726,-1183.81,0.00020613,2]
[386555937,1758389051862,-1132.26,0.00020614,2]
[386555938,1758389051894,-518.7942634,0.00020614,2]
[386555939,1758389051928,-1424.830117,0.00020614,2]
[386555940,1758389052058,-636.319883,0.00020614,2]
[386555941,1758389052099,-500.0,0.00020614,2]
[386555942,1758389052134,-3086.28323192,0.00020614,2]
[386555943,1758389052189,-480.0,0.00020614,2]
[386555944,1758389052350,-1867.44353616,0.00020614,2]
[386555945,1758389067982,4109.52880072,0.000199,2]
[386555946,1758389069665,236.39,0.00019425,2]
[386555947,1758389070069,472.78,0.0002035,2]
[386555948,1758389073593,-192.20953861,0.00020587,2]
[386555949,1758389077107,-187.55991962,0.00020587,2]
[386555950,1758389088672,945.476116,0.00019621,2]
[386555951,1758389104132,-196.85088082,0.00020586,2]
[386555952,1758389111716,-283.14911918,0.00020586,2]
[386555953,1758389111745,-480.0,0.00020586,2]
[386555954,1758389111774,-480.0,0.00020586,2]
[386555955,1758389111806,-791.25054177,0.00020587,2]
[386555956,1758389111836,-300.0,0.00020612,2]
[386555957,1758389111866,-1514.12,0.00020613,2]
[386555958,1758389111896,-480.0,0.00020613,2]
[386555959,1758389111928,-500.0,0.00020613,2]
[386555960,1758389112150,-480.0,0.00020613,2]
[386555961,1758389112177,-480.0,0.00020613,2]
[386555962,1758389112206,-1376.43,0.00020613,2]
[386555963,1758389131187,10000.0,0.00019622,2]
[386555964,1758389131773,-508.51,0.00020613,2]
[386555965,1758389131802,-480.0,0.00020613,2]
[386555966,1758389151653,-480.0,0.00020586,2]
[386555967,1758389151681,-264.75,0.00020613,2]
[386555968,1758389151712,-3004.2,0.00020613,2]
[386555969,1758389151844,-431.04576138,0.00020614,2]
[386555970,1758389156579,234.7,0.00019374,2]
[386555971,1758389157819,469.4,0.00020297,2]
[386555975,1758389178445,362.250287,0.0001962,2]
[386555976,1758389191527,-480.0,0.00020586,2]
[386555977,1758389191557,-480.0,0.00020586,2]
[386555978,1758389191586,-480.0,0.00020586,2]
[386555979,1758389191614,-480.0,0.00020586,2]
[386555980,1758389191642,-2935.7284686,0.00020603,2]
[386555981,1758389191895,-548.99,0.00020613,2]
[386555982,1758389191924,-300.0,0.00020613,2]
[386555983,1758389191955,-783.83,0.00020613,2]
[386555984,1758389191984,-500.0,0.00020613,2]
[386555985,1758389192082,-5660.6727758,0.00020614,2]
[386555996,1758389244701,225.74,0.00019238,2]
[386555999,1758389245337,451.48,0.00020154,2]
[386556000,1758389248933,4116.90824167,0.000199,2]
[386556005,1758389272299,5205.88175833,0.00018,2]
[386556006,1758389272321,10000.01,0.00018,2]
[386556007,1758389272343,8390.30185782,0.00018,2]
[386556009,1758389281931,-480.0,0.00020586,2]
[386556010,1758389281975,-3398.5,0.00020586,2]
[386556011,1758389282259,-2243.01,0.00020586,2]
[386556012,1758389282301,-480.0,0.00020586,2]
[386556013,1758389282338,-510.86,0.00020613,2]
[386556014,1758389282378,-300.0,0.00020613,2]
[386556015,1758389282415,-480.0,0.00020613,2]
[386556016,1758389282452,-480.0,0.00020613,2]
[386556017,1758389282490,-480.0,0.00020613,2]
[386556020,1758389291956,-480.0,0.00020586,2]
[386556021,1758389291986,-870.05,0.00020613,2]
[386556022,1758389292014,-480.0,0.00020613,2]
[386556023,1758389292043,-480.0,0.00020613,2]
[386556024,1758389292070,-480.0,0.00020613,2]
[386556025,1758389292098,-300.0,0.00020613,2]
[386556026,1758389292128,-1346.45,0.00020613,2]
[386556027,1758389292157,-544.06,0.00020613,2]
[386556033,1758389316615,10000.01,0.00017,2]
[386556034,1758389316637,10000.01,0.00017,2]
[386556035,1758389316658,5381.13718864,0.00017,2]
[386556037,1758389319009,4618.87281136,0.00015,2]
[386556038,1758389319031,10000.01,0.00015,2]
[386556039,1758389319052,10000.01,0.00015,2]
[386556040,1758389319074,10000.01,0.00015,2]
[386556041,1758389319094,6440.31275481,0.00015,2]
[386556042,1758389321468,3559.69724519,0.00018,2]
[386556043,1758389321489,6182.4680327,0.00018,2]
[386556046,1758389331526,217.12,0.00019222,2]
[386556047,1758389332124,434.24,0.00020137,2]
[386556055,1758389375229,-290.65341821,0.00020586,2]
[386556056,1758389377156,-794.42658179,0.00020586,2]
[386556057,1758389377184,-300.0,0.00020612,2]
[386556058,1758389377322,-589.64046245,0.00020613,2]
[386556059,1758389377349,-256.34322147,0.00020613,2]
[386556060,1758389377376,-490.34,0.00020613,2]
[386556061,1758389377404,-172.57238634,0.00020613,2]
[386556062,1758389377431,-500.0,0.00020613,2]
[386556063,1758389377458,-180.0,0.00020613,2]
[386556064,1758389377485,-500.0,0.00020613,2]
[386556065,1758389377515,-500.0,0.00020613,2]
[386556066,1758389377548,-500.0,0.00020613,2]
[386556067,1758389377753,-500.0,0.00020613,2]
[386556068,1758389377782,-372.82999871,0.00020613,2]
[386556069,1758389377811,-500.0,0.00020613,2]
[386556070,1758389377841,-500.0,0.00020613,2]
[386556071,1758389377869,-500.0,0.00020613,2]
[386556072,1758389377899,-500.0,0.00020613,2]
[386556073,1758389377927,-500.0,0.00020613,2]
[386556074,1758389377955,-500.0,0.00020613,2]
[386556075,1758389377984,-385.59826242,0.00020613,2]
[386556076,1758389378011,-350.17383481,0.00020613,2]
[386556077,1758389378041,-282.80580812,0.00020613,2]
[386556078,1758389379394,223.68717031,0.00020515,2]
[386556079,1758389379429,233.22915243,0.00020515,2]
[386556081,1758389387217,-491.67727717,0.00020609,2]
[386556082,1758389387248,-217.19419188,0.00020613,2]
[386556083,1758389387278,-500.0,0.00020613,2]
[386556084,1758389387306,-500.0,0.00020613,2]
[386556085,1758389387333,-480.0,0.00020613,2]
[386556086,1758389387363,-500.0,0.00020613,2]
[386556087,1758389387392,-500.0,0.00020613,2]
[386556088,1758389387424,-500.0,0.00020613,2]
[386556089,1758389387453,-500.0,0.00020613,2]
[386556090,1758389387496,-398.75268998,0.00020613,2]
[386556091,1758389387532,-352.8642992,0.00020613,2]
[386556092,1758389387876,-512.85,0.00020613,2]
[386556093,1758389387905,-480.0,0.00020613,2]
[386556094,1758389387933,-480.0,0.00020613,2]
[386556095,1758389387964,-480.0,0.00020613,2]
[386556096,1758389387992,-537.54,0.00020613,2]
[386556097,1758389388021,-1370.48,0.00020613,2]
[386556098,1758389388051,-480.0,0.00020613,2]
[386556099,1758389388081,-480.0,0.00020613,2]
[386556102,1758389397198,-1519.48,0.00020613,2]
[386556103,1758389397227,-480.0,0.00020613,2]
[386556104,1758389397255,-480.0,0.00020613,2]
[386556105,1758389397286,-701.15207334,0.00020614,2]
[386556108,1758389417236,-300.0,0.00020613,2]
[386556109,1758389417264,-300.0,0.00020613,2]
[386556110,1758389417292,-233.0,0.00020613,2]
[386556111,1758389417323,-480.0,0.00020613,2]
[386556112,1758389417353,-1200.0,0.00020613,2]
[386556113,1758389417383,-1588.86,0.00020613,2]
[386556114,1758389417411,-300.0,0.00020613,2]
[386556115,1758389417678,-3638.74585332,0.00020614,2]
[386556116,1758389417707,-606.56,0.00020614,2]
[386556117,1758389417967,-2755.96188121,0.00020614,2]
[386556118,1758389417997,-1136.51,0.00020614,2]
[386556119,1758389418026,-1092.83623758,0.00020614,2]
[386556120,1758389418290,-29.39376242,0.00020614,2]
[386556121,1758389418318,-181.653,0.00020615,2]
[386556122,1758389418346,-420.674045,0.0002062,2]
[386556123,1758389418373,-351.96419027,0.0002062,2]
[386556124,1758389418403,-1559.65,0.0002062,2]
[386556125,1758389418432,-480.0,0.0002062,2]
[386556126,1758389418461,-1134.49,0.0002062,2]
[386556127,1758389418491,-233.33000462,0.0002062,2]
[386556128,1758389418677,-1217.69999538,0.0002062,2]
[386556129,1758389418706,-480.0,0.0002062,2]
[386556130,1758389418735,-1319.08,0.0002062,2]
[386556131,1758389418765,-487.32,0.0002062,2]
[386556132,1758389418797,-112.78000924,0.0002062,2]
[386556133,1758389418887,-2766.24999076,0.0002062,2]
[386556134,1758389419820,215.38,0.00019365,2]
[386556135,1758389420272,430.75,0.00020288,2]
[386556139,1758389425198,168.0,0.00020105,2]
[386556140,1758389427275,-480.0,0.00020613,2]
[386556141,1758389427305,-480.0,0.00020613,2]
[386556142,1758389427334,-203.86917872,0.00020613,2]
[386556144,1758389429779,168.0,0.00020163,2]
[386556218,1758389437121,4050.03817993,0.000199,2]
[386556219,1758389437312,-480.0,0.00020613,2]
[386556220,1758389437343,-168.0,0.00020615,2]
[386556221,1758389437372,-480.0,0.00020619,2]
[386556222,1758389437401,-480.0,0.00020619,2]
[386556223,1758389437428,-530.02741828,0.00020619,2]
[386556224,1758389438060,-6474.87134645,0.0002062,2]
[386556232,1758389438545,-736.12090922,0.0002062,2]
[386556233,1758389438600,-10923.52634378,0.0002062,2]
[386556234,1758389438655,-783.65300744,0.0002062,2]
[386556235,1758389438666,-18444.0,0.0002062,2]
[386556256,1758389440423,168.0,0.00020335,2]
[386556280,1758389441972,-340.40371102,0.00020613,2]
[386556281,1758389442214,-0.01341234,0.00020613,2]
[386556283,1758389443666,-1154.25287664,0.00020613,2]
[386556284,1758389443675,-480.0,0.00020619,2]
[386556285,1758389443685,-8436.09950204,0.0002062,2]
[386556286,1758389443694,-526.11,0.0002062,2]
[386556287,1758389443703,-480.0,0.0002062,2]
[386556288,1758389443712,-751.17,0.0002062,2]
[386556289,1758389443721,-2915.28,0.00020621,2]
[386556290,1758389443730,-1638.96,0.00020621,2]
[386556291,1758389443739,-480.0,0.00020621,2]
[386556292,1758389443749,-2266.78,0.00020621,2]
[386556293,1758389443758,-480.0,0.00020622,2]
[386556294,1758389443768,-480.0,0.00020622,2]
[386556295,1758389443777,-480.0,0.00020622,2]
[386556297,1758389443786,-624.36,0.00020622,2]
[386556299,1758389443795,-480.0,0.00020622,2]
[386556300,1758389443803,-480.0,0.00020622,2]
[386556301,1758389443813,-480.0,0.00020622,2]
[386556302,1758389443933,-698.42,0.00020622,2]
[386556303,1758389443943,-480.0,0.00020622,2]
[386556304,1758389443954,-1696.46,0.00020622,2]
[386556305,1758389443963,-480.0,0.00020622,2]
[386556306,1758389443972,-480.0,0.00020622,2]
[386556307,1758389443982,-566.29,0.00020622,2]
[386556308,1758389443991,-1201.13,0.00020622,2]
[386556309,1758389443999,-480.0,0.00020622,2]
[386556310,1758389444009,-480.0,0.00020622,2]
[386556311,1758389444018,-480.0,0.00020622,2]
[386556312,1758389444027,-480.0,0.00020622,2]
[386556313,1758389444036,-493.7410788,0.00020622,2]
[386556314,1758389444045,-480.0,0.00020622,2]
[386556315,1758389444054,-480.0,0.00020622,2]
[386556316,1758389444063,-430.0,0.00020622,2]
[386556317,1758389444073,-480.0,0.00020622,2]
[386556318,1758389444083,-480.0,0.00020625,2]
[386556319,1758389444092,-480.0,0.00020625,2]
[386556320,1758389444101,-480.0,0.00020625,2]
[386556321,1758389444110,-480.0,0.00020625,2]
[386556322,1758389444120,-1047.59,0.00020625,2]
[386556323,1758389444129,-480.0,0.00020625,2]
[386556324,1758389444138,-480.0,0.00020625,2]
[386556325,1758389444147,-480.0,0.00020625,2]
[386556326,1758389444156,-480.0,0.00020625,2]
[386556327,1758389444165,-480.0,0.00020625,2]
[386556328,1758389444174,-480.0,0.00020625,2]
[386556329,1758389444183,-520.08,0.00020627,2]
[386556330,1758389444192,-2353.05,0.00020641,10]
[386556331,1758389444201,-652.01,0.00020651,3]
[386556332,1758389444212,-455.76,0.00020651,3]
[386556333,1758389444221,-227.88,0.00020651,3]
[386556334,1758389444229,-683.69,0.00020651,3]
[386556335,1758389444239,-1335.95,0.00020651,10]
[386556336,1758389444248,-1960.88,0.00020651,10]
[386556337,1758389444257,-1634.06,0.00020651,10]
[386556338,1758389444266,-175869.99654253,0.00020661,2]
[386556357,1758389449613,-300.0,0.00020586,2]
[386556358,1758389450924,168.0,0.00020222,2]
[386556365,1758389497440,-1675.27,0.00020586,2]
[386556366,1758389497554,-480.0,0.00020613,2]
[386556367,1758389497608,-447.6382383,0.00020613,2]
[386556368,1758389497640,-480.0,0.00020613,2]
[386556369,1758389497671,-1040.3835234,0.00020613,2]
[386556370,1758389497789,-1585.4264766,0.00020613,2]
[386556371,1758389505335,210.97,0.00019246,2]
[386556372,1758389505823,421.94,0.00020163,2]
[386556373,1758389517477,-168.0,0.00020613,2]
[386556374,1758389517506,-160.0,0.00020613,2]
[386556375,1758389517534,-480.0,0.00020613,2]
[386556376,1758389517563,-1087.22,0.00020613,2]
[386556377,1758389517593,-1390.57,0.00020613,2]
[386556378,1758389517726,-1570.67,0.00020613,2]
[386556379,1758389517845,-287.09,0.00020613,2]
[386556382,1758389538525,-1200.0,0.00020612,2]
[386556383,1758389538554,-192.91,0.00020613,2]
[386556384,1758389538583,-480.0,0.00020613,2]
[386556385,1758389538615,-480.0,0.00020613,2]
[386556386,1758389538645,-480.0,0.00020613,2]
[386556387,1758389538678,-598.34,0.00020613,2]
[386556388,1758389538711,-480.0,0.00020613,2]
[386556389,1758389538741,-370.09188797,0.00020613,2]
[386556390,1758389538772,-173.20622406,0.00020613,2]
[386556391,1758389538913,-1090.91377594,0.00020613,2]
[386556392,1758389547633,-480.0,0.00020613,2]
[386556393,1758389547663,-480.0,0.00020613,2]
[386556394,1758389547693,-480.0,0.00020613,2]
[386556395,1758389547724,-1645.78,0.00020613,2]
[386556396,1758389547754,-447.71090213,0.00020613,2]
[386556397,1758389547783,-480.0,0.00020613,2]
[386556398,1758389547813,-374.47906482,0.00020619,2]
[386556399,1758389547843,-391.10476311,0.00020619,2]
[386556400,1758389547871,-149.55786692,0.00020619,2]
[386556401,1758389548018,-142.74480604,0.00020619,2]
[386556402,1758389567688,-532.53,0.00020613,2]
[386556403,1758389567718,-480.0,0.00020613,2]
[386556404,1758389567753,-500.0,0.00020619,2]
[386556405,1758389567785,-261.13042609,0.00020619,2]
[386556406,1758389567817,-253.81677248,0.00020619,2]
[386556407,1758389567845,-480.0,0.00020619,2]
[386556408,1758389567874,-480.0,0.00020619,2]
[386556409,1758389567904,-500.0,0.00020619,2]
[386556410,1758389567932,-480.0,0.00020619,2]
[386556411,1758389567959,-241.89476825,0.00020619,2]
[386556412,1758389567993,-470.75255859,0.00020619,2]
[386556413,1758389568022,-151.25736279,0.00020619,2]
[386556414,1758389568196,-337.2462236,0.00020619,2]
[386556415,1758389568223,-471.54255488,0.00020619,2]
[386556416,1758389568250,-488.02138071,0.00020619,2]
[386556417,1758389568278,-480.0,0.00020619,2]
[386556418,1758389568406,-487.47340476,0.00020619,2]
[386556419,1758389568435,-487.75832336,0.00020619,2]
[386556420,1758389568462,-483.85679427,0.00020619,2]
[386556421,1758389568489,-480.0,0.00020619,2]
[386556422,1758389568516,-486.08653928,0.00020619,2]
[386556423,1758389568543,-152.11310989,0.00020619,2]
[386556424,1758389568572,-480.0,0.00020619,2]
[386556425,1758389568925,-361.48337279,0.00020619,2]
[386556426,1758389568955,-118.51662721,0.00020619,2]
[386556427,1758389568964,-213.29671129,0.00020619,2]
[386556428,1758389592195,202.92,0.00019361,2]
[386556429,1758389592728,405.83,0.00020283,2]
[386556430,1758389597784,-285.47,0.00020586,2]
[386556431,1758389597824,-504.19,0.00020613,2]
[386556432,1758389597861,-2192.33,0.00020613,2]
[386556433,1758389597896,-730.67,0.00020613,2]
[386556434,1758389598058,-1965.94,0.00020613,2]
[386556435,1758389598103,-793.13,0.00020613,2]
[386556436,1758389598140,-300.0,0.00020618,2]
[386556437,1758389598173,-463.66376798,0.00020619,2]
[386556438,1758389598207,-104.81989419,0.00020619,2]
[386556439,1758389598241,-483.48260203,0.00020619,2]
[386556440,1758389598278,-480.0,0.00020619,2]
[386556441,1758389598312,-480.0,0.00020619,2]
[386556442,1758389598344,-480.0,0.00020619,2]
[386556443,1758389598373,-515.14,0.00020619,2]
[386556444,1758389598551,-470.75255859,0.00020619,2]
[386556445,1758389598581,-378.03235442,0.00020619,2]
[386556446,1758389598787,-101.96764558,0.00020619,2]
[386556447,1758389607679,-10000.01,0.00020586,2]
[386556448,1758389607810,-1909.41,0.00020586,2]
[386556449,1758389607840,-1476.17,0.00020619,2]
[386556450,1758389607871,-489.58,0.0002062,2]
[386556451,1758389607900,-480.0,0.0002062,2]
[386556452,1758389607971,-1289.69,0.0002062,2]
[386556453,1758389618360,4035.9132787,0.000199,2]
[386556454,1758389678676,195.17,0.00019223,2]
[386556455,1758389679146,390.34,0.00020138,2]
[386556458,1758389725773,393.34182176,0.00020568,2]
[386556459,1758389757969,-581.28,0.00020586,2]
[386556460,1758389757999,-1089.86,0.00020586,2]
[386556461,1758389758027,-300.0,0.00020612,2]
[386556462,1758389758056,-300.0,0.00020612,2]
[386556463,1758389758084,-160.0,0.00020613,2]
[386556465,1758389758215,-480.0,0.00020613,2]
[386556466,1758389758242,-468.46684287,0.00020613,2]
[386556467,1758389758269,-669.32,0.00020613,2]
[386556468,1758389758302,-480.0,0.00020613,2]
[386556469,1758389758331,-462.15631426,0.00020613,2]
[386556470,1758389766803,187.72,0.00019261,2]
[386556471,1758389767882,375.43,0.00020178,2]
[386556472,1758389788033,-300.0,0.00020612,2]
[386556473,1758389788062,-17.84368574,0.00020613,2]
[386556474,1758389788089,-480.0,0.00020613,2]
[386556475,1758389788117,-480.0,0.00020613,2]
[386556476,1758389788148,-833.8,0.00020613,2]
[386556477,1758389788178,-542.69,0.00020613,2]
[386556478,1758389788206,-480.0,0.00020613,2]
[386556479,1758389788233,-480.0,0.00020613,2]
[386556480,1758389788262,-1256.61,0.00020613,2]
[386556481,1758389799512,289.9233679,0.00019633,2]
[386556482,1758389808059,3901.38283627,0.000199,2]
[386556483,1758389851808,180.55,0.00019253,2]
[386556484,1758389852475,361.1,0.0002017,2]
[386556485,1758389858352,-300.0,0.00020612,2]
[386556486,1758389858380,-480.0,0.00020613,2]
[386556487,1758389858409,-480.0,0.00020613,2]
[386556488,1758389858438,-491.48,0.00020613,2]
[386556489,1758389858465,-480.0,0.00020613,2]
[386556490,1758389858494,-1151.08,0.00020613,2]
[386556491,1758389858522,-480.0,0.00020613,2]
[386556492,1758389858552,-941.51,0.00020613,2]
[386556501,1758389865527,265.0,0.00020358,2]
[386556502,1758389876947,399.80178238,0.00020522,2]
[386556503,1758389900809,265.0,0.00020556,2]
[386556504,1758389908356,-265.0,0.000206,2]
[386556505,1758389908383,-355.1423593,0.00020612,2]
[386556506,1758389908414,-300.0,0.00020612,2]
[386556507,1758389908444,-391.87,0.00020613,2]
[386556508,1758389908473,-480.0,0.00020613,2]
[386556509,1758389908502,-480.0,0.00020613,2]
[386556510,1758389908533,-480.0,0.00020613,2]
[386556511,1758389908562,-480.0,0.00020613,2]
[386556512,1758389908590,-535.3,0.00020613,2]
[386556513,1758389908618,-922.7252814,0.00020613,2]
[386556514,1758389928511,-619.9347186,0.00020613,2]
[386556515,1758389928541,-521.39,0.00020613,2]
[386556516,1758389928570,-480.0,0.00020613,2]
[386556517,1758389928599,-480.0,0.00020613,2]
[386556518,1758389928627,-480.0,0.00020613,2]
[386556519,1758389928655,-480.0,0.00020613,2]
[386556520,1758389928685,-480.0,0.00020613,2]
[386556521,1758389928714,-163.59,0.00020613,2]
[386556522,1758389928744,-480.0,0.00020613,2]
[386556523,1758389928776,-280.0,0.00020613,2]
[386556524,1758389937775,173.66,0.00019249,2]
[386556525,1758389938184,347.31,0.00020165,2]
[386556527,1758389988642,-1115.07,0.00020586,2]
[386556528,1758389988671,-300.0,0.00020612,2]
[386556529,1758389988703,-2847.33,0.00020613,2]
[386556530,1758389988733,-480.0,0.00020613,2]
[386556531,1758389988768,-35.21,0.00020613,2]
[386556532,1758389999685,3928.05402529,0.000199,2]
[386556533,1758390023685,167.02,0.00019254,2]
[386556534,1758390024256,334.05,0.0002017,2]
[386556535,1758390048789,-300.0,0.00020612,2]
[386556536,1758390048819,-444.79,0.00020613,2]
[386556537,1758390048848,-480.0,0.00020613,2]
[386556538,1758390048876,-480.0,0.00020613,2]
[386556539,1758390048905,-1600.48,0.00020613,2]
[386556540,1758390048934,-625.42,0.00020613,2]
[386556541,1758390048963,-480.0,0.00020613,2]
[386556542,1758390062920,823.7702012,0.00019624,2]
[386556543,1758390066177,315.84110891,0.00020568,2]
[386556544,1758390088691,-300.0,0.00020612,2]
[386556545,1758390088721,-1577.2,0.00020613,2]
[386556546,1758390088749,-480.0,0.00020613,2]
[386556547,1758390088777,-480.0,0.00020613,2]
[386556548,1758390088807,-2118.67,0.00020613,2]
[386556549,1758390115185,160.65,0.00019246,2]
[386556550,1758390115267,328.232759,0.00019621,2]
[386556551,1758390115682,321.29,0.00020162,2]
[386556552,1758390122528,355.40898745,0.00020519,2]
[386556553,1758390124605,595.199034,0.00019621,2]
[386556554,1758390186373,3938.77891371,0.000199,2]
[386556555,1758390202988,154.51,0.00019254,2]
[386556556,1758390203569,309.03,0.00020171,2]
[386556557,1758390218989,-181.653,0.00020612,2]
[386556558,1758390219019,-951.3586608,0.00020612,2]
[386556559,1758390219048,-253.0,0.00020612,2]
[386556560,1758390219078,-88.27,0.00020613,2]
[386556561,1758390219107,-583.38256538,0.00020613,2]
[386556562,1758390219136,-306.93369591,0.00020613,2]
[386556563,1758390219165,-480.0,0.00020613,2]
[386556564,1758390219193,-298.99810247,0.00020613,2]
[386556565,1758390219221,-480.0,0.00020613,2]
[386556566,1758390219249,-480.0,0.00020613,2]
[386556567,1758390219277,-370.77,0.00020613,2]
[386556568,1758390219306,-477.86795088,0.00020613,2]
[386556569,1758390286715,150.0,0.00019245,2]
[386556570,1758390287224,297.23,0.00020161,2]
[386556571,1758390334322,-964.7983892,0.00020612,2]
[386556572,1758390334352,-95.54204912,0.00020613,2]
[386556573,1758390334381,-480.0,0.00020613,2]
[386556574,1758390334411,-480.0,0.00020613,2]
[386556575,1758390334440,-520.54,0.00020613,2]
[386556576,1758390334468,-480.0,0.00020613,2]
[386556577,1758390334496,-480.0,0.00020613,2]
[386556578,1758390334524,-480.0,0.00020613,2]
[386556579,1758390334552,-481.49281961,0.00020613,2]
[386556580,1758390334584,-480.0,0.00020613,2]
[386556582,1758390367937,3935.16634248,0.000199,2]
[386556583,1758390371898,150.0,0.00019244,2]
[386556584,1758390372296,285.84,0.0002016,2]
[386556585,1758390378436,310.98286401,0.00020518,2]
[386556586,1758390384433,-641.43,0.00020613,2]
[386556587,1758390384464,-480.0,0.00020613,2]
[386556588,1758390384494,-480.0,0.00020613,2]
[386556589,1758390384523,-480.0,0.00020613,2]
[386556590,1758390384552,-538.43,0.00020613,2]
[386556591,1758390384582,-480.0,0.00020613,2]
[386556592,1758390384610,-480.0,0.00020613,2]
[386556593,1758390384639,-480.0,0.00020613,2]
[386556594,1758390384666,-480.0,0.00020613,2]
[386556595,1758390384694,-440.29,0.00020613,2]
[386556596,1758390406423,252.67288712,0.00020568,2]
[386556597,1758390455333,150.0,0.00019245,2]
[386556598,1758390455812,274.75,0.00020161,2]
[386556633,1758390540163,150.0,0.00019247,2]
[386556634,1758390540809,263.94,0.00020164,2]
[386556635,1758390558466,3803.99413118,0.000199,2]
[386556636,1758390559771,5104.6529817,0.00020525,2]
[386556637,1758390559793,10000.01,0.00020525,2]
[386556638,1758390559815,10000.01,0.00020525,2]
[386556639,1758390559837,10000.01,0.00020525,2]
[386556640,1758390559859,10000.01,0.00020525,2]
[386556641,1758390559881,10000.01,0.00020525,2]
[386556642,1758390559903,10000.01,0.00020525,2]
[386556643,1758390559925,10000.01,0.00020525,2]
[386556644,1758390559946,10000.01,0.00020525,2]
[386556645,1758390559969,10000.01,0.00020525,2]
[386556646,1758390560003,150173.4793739,0.00020525,2]
[386556647,1758390592154,310.92560647,0.0002,2]
[386556648,1758390592417,500.0,0.000202,2]
[386556649,1758390604847,500.0,0.000202,2]
[386556650,1758390617110,500.0,0.000202,2]
[386556651,1758390624474,150.0,0.00019219,2]
[386556652,1758390624952,257.22,0.00020135,2]
[386556706,1758390631918,-463.66376798,0.00020608,10]